fUST/lending_fUST_20240831
["ID","MTS","AMOUNT","RATE_DAILY","PERIOD"]
[336723847,1725080829109,-572.41252767,0.00032775,2]
[336723848,1725080829131,-1726.86276367,0.00032776,2]
[336723850,1725080843111,-5180.9040374,0.00031279,2]
[336723851,1725080843133,-309.8035938,0.000322,2]
[336723852,1725080843153,-409.4335708,0.000322,2]
[336723853,1725080843173,-273.13723633,0.00032776,2]
[336723854,1725080843193,-926.8341569,0.00032776,2]
[336723855,1725080847113,-500.0,0.0003203,7]
[336723856,1725080847134,-500.0,0.00032205,7]
[336723857,1725080847154,-42.43775596,0.00032776,2]
[336723875,1725080946121,-160.565149,0.00028767,2]
[336723884,1725080995566,3222.0,0.00025,120]
[336724078,1725081040423,-225.53319,0.00031318,2]
[336724080,1725081040433,-400.0,0.00032775,2]
[336724082,1725081040443,-220.0,0.00032775,2]
[336724084,1725081040453,-7156.6085162,0.00032776,120]
[336724086,1725081040463,-796.47050663,0.00032776,2]
[336724088,1725081040472,-1014.41637066,0.00032776,2]
[336724090,1725081040482,-2489.80238843,0.00032776,2]
[336724092,1725081040492,-598.0,0.000328,6]
[336724094,1725081040503,-1000.0,0.000328,2]
[336724096,1725081040512,-418.66,0.00032856,3]
[336724098,1725081040522,-348.88,0.00032856,3]
[336724100,1725081040532,-575.56326468,0.00032859,2]
[336724101,1725081040542,-5435.18676639,0.00032859,2]
[336724102,1725081040553,-271.76740172,0.00032865,5]
[336724103,1725081040565,-105712.91813,0.00032866,4]
[336724104,1725081040575,-500.0,0.00032875,2]
[336724105,1725081040585,-367.1222679,0.00032875,2]
[336724106,1725081040596,-461.18221474,0.00032876,5]
[336724136,1725081043558,-505.82713269,0.00032876,5]
[336724138,1725081043568,-151.0,0.00032876,7]
[336724140,1725081043578,-115.685041,0.00032876,7]
[336724141,1725081043591,-35.314959,0.00032876,7]
[336724142,1725081043600,-151.0,0.00032876,7]
[336724143,1725081043609,-78.01939794,0.00032876,7]
[336724144,1725081043621,-72.98060206,0.00032876,7]
[336724145,1725081043631,-151.0,0.00032876,7]
[336724146,1725081043640,-151.0,0.00032876,7]
[336724147,1725081043649,-151.0,0.00032876,7]
[336724148,1725081043659,-151.0,0.00032876,7]
[336724149,1725081043668,-151.0,0.00032876,7]
[336724150,1725081043678,-152.46602,0.00032876,7]
[336724151,1725081043687,-50.97395378,0.00032876,31]
[336724152,1725081043703,-449.02604622,0.00032876,31]
[336724153,1725081043712,-84.7915948,0.00032876,31]
[336724160,1725081175827,163.307723,0.00014247,2]
[336724179,1725081743560,165.785909,0.00014247,2]
[336724182,1725081853745,582.0,0.00025,120]
[336724184,1725081940149,-1000.0,0.00025,2]
[336724185,1725081940172,-85.40895597,0.00025405,2]
[336724187,1725082027147,-80.37695303,0.00025405,2]
[336724188,1725082027169,-123.08936037,0.00028767,2]
[336724189,1725082033102,-37.47578863,0.00028767,2]
[336724190,1725082033123,-151.0,0.0003,120]
[336724191,1725082033145,-481.48421137,0.00030309,2]
[336724192,1725082034103,-1150.00706363,0.00030309,2]
[336724193,1725082034125,-251.0,0.00030388,2]
[336724194,1725082034147,-216.782187,0.00030481,2]
[336724195,1725082034171,-157.7254656,0.0003071,2]
[336724196,1725082034197,-151.0,0.00031277,7]
[336724197,1725082034217,-151.0,0.00031819,7]
[336724198,1725082034240,-151.0,0.00031863,120]
[336724199,1725082034263,-1000.0,0.00032,2]
[336724200,1725082034285,-151.0,0.0003236,7]
[336724201,1725082034309,-400.0,0.00032641,2]
[336724202,1725082034333,-1077.30364645,0.00032642,2]
[336724203,1725082040095,-1101.2734434,0.00032642,2]
[336724204,1725082040116,-181.92803436,0.00032671,2]
[336724205,1725082041125,-6405.02781448,0.00032671,2]
[336724206,1725082053117,-368.48812902,0.00032671,2]
[336724216,1725082205423,3288.68144511,0.00020189,2]
[336724217,1725082205450,5063.43088811,0.00020189,2]
[336724238,1725082232356,-673.10259239,0.000326,2]
[336724239,1725082232370,-799.21141664,0.000326,2]
[336724262,1725082238557,-433.94094458,0.000326,2]
[336724264,1725082238566,-400.0,0.0003267,2]
[336724266,1725082238576,-512.55905542,0.00032671,2]
[336724268,1725082238589,-619.23245383,0.00032671,2]
[336724315,1725082240616,-524.0752,0.00032671,2]
[336724316,1725082240629,-514.95,0.00032671,2]
[336724317,1725082240640,-502.5,0.00032671,2]
[336724318,1725082240679,-27914.52533767,0.00032671,2]
[336724339,1725082322125,163.92727,0.00014247,2]
[336724344,1725082851146,165.566623,0.00014247,2]
[336724347,1725083152146,-165.566623,0.00026521,2]
[336724348,1725083152167,-157.0,0.00027,2]
[336724349,1725083152188,-160.533093,0.00028767,2]
[336724350,1725083152209,-164.631845,0.00030138,2]
[336724351,1725083152230,-164.631845,0.00030243,2]
[336724352,1725083152252,-164.631845,0.00030348,2]
[336724353,1725083152273,-164.631845,0.00030452,2]
[336724354,1725083152303,-164.631845,0.00030557,2]
[336724355,1725083152328,-164.631845,0.00030662,2]
[336724356,1725083152349,-164.631845,0.00030767,2]
[336724357,1725083152370,-164.631845,0.00030871,2]
[336724358,1725083152392,-164.631845,0.00030976,2]
[336724359,1725083152412,-240.8715917,0.00031023,2]
[336724360,1725083154106,-159.1284083,0.00031023,2]
[336724361,1725083154127,-306.67413833,0.00031023,2]
[336724367,1725083240111,-400.0,0.00030534,2]
[336724368,1725083240135,-334.0,0.00030534,2]
[336724369,1725083240313,-297.81391157,0.00030535,2]
[336724370,1725083242107,-508.32836977,0.00030535,2]
[336724371,1725083247133,-9388.67646847,0.00030535,2]
[336724372,1725083249107,-5986.12120321,0.00030535,2]
[336724373,1725083250226,-1198.23846276,0.00030535,2]
[336724379,1725083432527,-689.08639479,0.00030535,2]
[336724422,1725083440738,-1594.08990463,0.00030535,2]
[336724423,1725083440748,-164.631845,0.00031081,2]
[336724424,1725083440758,-164.631845,0.00031185,2]
[336724425,1725083440769,-340.86728841,0.00031232,64]
[336724426,1725083440779,-164.631845,0.0003129,2]
[336724427,1725083440790,-164.631845,0.00031395,2]
[336724428,1725083440800,-164.631845,0.000315,2]
[336724429,1725083440810,-164.631845,0.00031604,2]
[336724430,1725083440820,-164.631845,0.00031709,2]
[336724431,1725083440830,-153.0,0.00031878,2]
[336724432,1725083440841,-202.740487,0.00031927,2]
[336724433,1725083440852,-501.540527,0.00031927,2]
[336724434,1725083440862,-1000.0,0.00032,2]
[336724435,1725083440872,-400.0,0.00032324,2]
[336724436,1725083440881,-501.540527,0.00032327,2]
[336724437,1725083440891,-151.0,0.00032481,7]
[336724438,1725083440900,-1667.9730844,0.00032581,2]
[336724439,1725083440910,-500.0,0.00032658,7]
[336724440,1725083440919,-14117.7150608,0.00032671,2]
[336724441,1725083440930,-1000.0,0.00032681,2]
[336724442,1725083440940,-1000.0,0.00032687,2]
[336724443,1725083440951,-188.71545216,0.0003269,2]
[336724444,1725083440960,-1000.0,0.00032704,2]
[336724445,1725083440973,-1000.0,0.00032714,2]
[336724446,1725083440983,-501.540527,0.00032726,2]
[336724447,1725083440994,-608.71432187,0.00032766,2]
[336724448,1725083441005,-608.71432187,0.00032769,2]
[336724449,1725083441015,-608.71432187,0.00032771,2]
[336724450,1725083441024,-608.71432187,0.00032774,2]
[336724451,1725083441034,-537.10917214,0.00032776,2]
[336724452,1725083441048,-1248.21028301,0.00032776,2]
[336724453,1725083441062,-608.71432187,0.00032776,2]
[336724454,1725083441072,-3000.0,0.0003286,120]
[336724455,1725083441081,-535.307217,0.00032865,5]
[336724456,1725083441091,-24836.41351579,0.00032866,4]
[336724457,1725083441106,-14396.8757799,0.00032866,4]
[336724459,1725083443738,-51.75583851,0.00032866,4]
[336724471,1725083446689,-618.53435688,0.00032866,4]
[336724473,1725083466870,165.246659,0.00014247,2]
[336724474,1725083467096,165.246659,0.00023688,2]
[336724475,1725083512998,162.348361,0.00028767,2]
[336724486,1725084348230,-162.348361,0.00028767,2]
[336724487,1725084348254,-400.0,0.00030389,2]
[336724488,1725084348278,-400.0,0.00030389,2]
[336724489,1725084348300,-3250.83078997,0.0003039,2]
[336724490,1725084348403,-1666.3437491,0.0003039,2]
[336724492,1725084431119,-154.0,0.00030389,2]
[336724493,1725084431142,-2035.17160848,0.0003039,2]
[336724494,1725084440120,-989.02681734,0.0003039,2]
[336724495,1725084442102,-8554.52245693,0.0003039,2]
[336724496,1725084448114,-7371.50036938,0.0003039,2]
[336724497,1725084448136,-475.4193818,0.00030431,2]
[336724498,1725084448158,-855.334693,0.000305,7]
[336724499,1725084448178,-818.8929513,0.000305,7]
[336724500,1725084448200,-251.840766,0.00030623,2]
[336724501,1725084448222,-169.546122,0.00031021,2]
[336724502,1725084448247,-132.52620375,0.0003156,2]
[336724503,1725084449102,-37.01991825,0.0003156,2]
[336724504,1725084449123,-154.030816,0.00031941,2]
[336724505,1725084449143,-153.0,0.00031941,2]
[336724506,1725084449163,-153.0,0.00031941,2]
[336724507,1725084449184,-151.0,0.00031962,7]
[336724508,1725084449205,-131.7873463,0.00032098,2]
[336724509,1725084471320,165.246659,0.00014247,2]
[336724517,1725084548098,-165.246659,0.00025405,2]
[336724523,1725084631734,-475.41938185,0.00032087,2]
[336724574,1725084638135,-124.58061815,0.00032087,2]
[336724577,1725084638147,-37.7587757,0.00032098,2]
[336724579,1725084638159,-466.35677192,0.00032421,2]
[336724599,1725084638345,-135.90779006,0.00032421,2]
[336724601,1725084638354,-151.0,0.0003248,7]
[336724603,1725084638364,-169.546122,0.00032637,2]
[336724605,1725084638374,-1000.0,0.00032638,2]
[336724607,1725084638383,-162.24,0.000327,31]
[336724609,1725084638393,-829.39848708,0.00032766,2]
[336724611,1725084638402,-1893.35876611,0.00032766,2]
[336724614,1725084638418,-106.64123389,0.00032766,2]
[336724616,1725084638428,-201.8151498,0.00032769,2]
[336724618,1725084638440,-627.58333725,0.00032769,2]
[336724620,1725084638449,-829.39848705,0.00032771,2]
[336724622,1725084638459,-829.39848705,0.00032774,2]
[336724624,1725084638468,-829.39848705,0.00032776,2]
[336724626,1725084638477,-4811.80133713,0.000328,5]
[336724628,1725084638488,-6101.80032192,0.000328,5]
[336724630,1725084638497,-6101.80032189,0.000328,5]
[336724632,1725084638506,-6101.80032189,0.000328,5]
[336724634,1725084638516,-6101.80032189,0.000328,5]
[336724636,1725084638526,-1000.0,0.00032812,2]
[336724638,1725084638535,-427.58747233,0.00032815,2]
[336724640,1725084638545,-572.41252767,0.00032834,2]
[336724642,1725084638557,-152.02,0.00032856,3]
[336724644,1725084638567,-265.4,0.00032856,3]
[336724646,1725084638577,-221.17,0.00032856,3]
[336724648,1725084638587,-535.307217,0.00032865,5]
[336724650,1725084638596,-31249.70547206,0.00032866,4]
[336724657,1725084638646,-785.25583621,0.00032866,4]
[336724659,1725084638661,-27638.04791398,0.00032866,4]
[336724797,1725084639964,-15325.60761925,0.00032866,4]
[336724799,1725084639974,-251.302193,0.00032866,7]
[336724801,1725084639983,-151.0,0.00032866,7]
[336724803,1725084639993,-151.0,0.00032866,7]
[336724805,1725084640003,-151.0,0.00032866,7]
[336724807,1725084640013,-233.300863,0.00032866,7]
[336724810,1725084640024,-151.0,0.00032866,7]
[336724811,1725084640034,-190.638527,0.00032866,7]
[336724813,1725084640043,-151.0,0.00032866,7]
[336724815,1725084640052,-151.0,0.00032866,7]
[336724817,1725084640062,-151.0,0.00032866,7]
[336724819,1725084640072,-151.0,0.00032866,7]
[336724821,1725084640082,-199.774383,0.00032866,7]
[336724823,1725084640092,-151.0,0.00032866,7]
[336724825,1725084640101,-151.0,0.00032866,7]
[336724827,1725084640111,-268.744084,0.00032866,7]
[336724829,1725084640120,-268.744084,0.00032866,7]
[336724831,1725084640129,-151.599583,0.00032866,7]
[336724834,1725084640139,-636.017882,0.00032866,7]
[336724836,1725084640149,-636.017882,0.00032866,7]
[336724838,1725084640159,-636.017882,0.00032866,7]
[336724840,1725084640168,-636.017882,0.00032866,7]
[336724842,1725084640178,-157.181891,0.00032866,7]
[336724844,1725084640190,-151.0,0.00032866,7]
[336724846,1725084640199,-151.0,0.00032866,7]
[336724848,1725084640210,-475.64733,0.00032866,7]
[336724850,1725084640221,-475.64733,0.00032866,7]
[336724852,1725084640233,-151.0,0.00032866,7]
[336724855,1725084640243,-151.0,0.00032866,7]
[336724857,1725084640253,-151.0,0.00032866,7]
[336724859,1725084640263,-154.384345,0.00032866,7]
[336724861,1725084640274,-475.64733,0.00032866,7]
[336724863,1725084640283,-475.64733,0.00032866,7]
[336724865,1725084640293,-256.205195,0.00032866,7]
[336724867,1725084640302,-151.0,0.00032866,7]
[336724869,1725084640312,-201.352984,0.00032866,7]
[336724871,1725084640322,-193.832658,0.00032866,7]
[336724873,1725084640332,-716.562528,0.00032866,7]
[336724875,1725084640341,-716.562528,0.00032866,7]
[336724877,1725084640352,-151.0,0.00032866,7]
[336724879,1725084640362,-151.0,0.00032866,7]
[336724881,1725084640372,-151.0,0.00032866,7]
[336724883,1725084640381,-716.562528,0.00032866,7]
[336724885,1725084640390,-151.0,0.00032866,7]
[336724887,1725084640400,-716.562528,0.00032866,7]
[336724889,1725084640409,-151.0,0.00032866,7]
[336724891,1725084640419,-151.0,0.00032866,7]
[336724893,1725084640429,-151.0,0.00032866,7]
[336724895,1725084640438,-151.0,0.00032866,7]
[336724897,1725084640448,-232.982318,0.00032866,7]
[336724899,1725084640457,-232.982318,0.00032866,7]
[336724901,1725084640468,-1354.645865,0.00032866,7]
[336724903,1725084640478,-485.13547706,0.00032866,7]
[336724906,1725084640494,-869.51038794,0.00032866,7]
[336724908,1725084640504,-232.982318,0.00032866,7]
[336724910,1725084640513,-232.982318,0.00032866,7]
[336724912,1725084640524,-1354.645865,0.00032866,7]
[336724913,1725084640533,-1354.645865,0.00032866,7]
[336724916,1725084640543,-151.0,0.00032866,7]
[336724917,1725084640553,-153.009167,0.00032866,7]
[336724920,1725084640567,-358.214312,0.00032866,7]
[336724922,1725084640578,-754.300893,0.00032866,7]
[336724924,1725084640587,-358.214312,0.00032866,7]
[336724926,1725084640599,-151.0,0.00032866,7]
[336724928,1725084640609,-754.300893,0.00032866,7]
[336724930,1725084640619,-738.556463,0.00032866,7]
[336724932,1725084640633,-738.556463,0.00032866,7]
[336724934,1725084640644,-151.0,0.00032866,7]
[336724936,1725084640655,-575.56326468,0.0003287,2]
[336724938,1725084640665,-185.96809272,0.00032874,2]
[336724940,1725084640675,-236.39498081,0.00032874,2]
[336724942,1725084640685,-411.198269,0.00032874,7]
[336724944,1725084640694,-151.0,0.00032874,7]
[336724946,1725084640704,-411.198269,0.00032874,7]
[336724948,1725084640714,-152.141679,0.00032874,7]
[336724950,1725084640724,-151.0,0.00032874,7]
[336724952,1725084640733,-268.759903,0.00032874,7]
[336724954,1725084640743,-151.0,0.00032874,7]
[336724956,1725084640752,-151.0,0.00032874,7]
[336724958,1725084640761,-154.19163426,0.00032875,2]
[336724960,1725084640771,-500.0,0.00032875,2]
[336724962,1725084640781,-536.87538033,0.00032875,2]
[336724964,1725084640791,-500.0,0.00032875,31]
[336724966,1725084640800,-256.884131,0.00032875,7]
[336724968,1725084640809,-151.0,0.00032875,7]
[336724970,1725084640818,-738.556463,0.00032875,7]
[336724972,1725084640828,-738.556463,0.00032875,7]
[336724974,1725084640838,-483.50467371,0.00032876,5]
[336724976,1725084640848,-151.0,0.00032876,7]
[336724977,1725084640858,-151.0,0.00032876,7]
[336724978,1725084640868,-151.0,0.00032876,7]
[336724979,1725084640878,-151.0,0.00032876,7]
[336724980,1725084640887,-151.0,0.00032876,7]
[336724981,1725084640899,-500.67920261,0.00032876,31]
[336724982,1725084640908,-500.0,0.00032876,31]
[336724983,1725084640918,-165.064103,0.00032876,7]
[336724984,1725084640927,-165.064103,0.00032876,7]
[336724985,1725084640937,-165.064103,0.00032876,7]
[336724986,1725084640946,-165.064103,0.00032876,7]
[336724987,1725084640956,-165.064103,0.00032876,7]
[336724988,1725084640966,-165.064103,0.00032876,7]
[336724989,1725084640976,-165.064103,0.00032876,7]
[336724990,1725084640986,-165.064103,0.00032876,7]
[336724991,1725084640996,-165.064103,0.00032876,7]
[336724992,1725084641007,-165.064103,0.00032876,7]
[336724993,1725084641016,-165.064097,0.00032876,7]
[336724994,1725084641026,-500.0,0.00032876,31]
[336724995,1725084641035,-500.0,0.00032876,31]
[336724996,1725084641045,-500.0,0.00032876,31]
[336724997,1725084641056,-500.0,0.00032876,31]
[336724998,1725084641065,-734.36,0.00032876,31]
[336724999,1725084641075,-500.0,0.00032876,31]
[336725000,1725084641085,-500.0,0.00032876,31]
[336725001,1725084641094,-500.0,0.00032876,31]
[336725002,1725084641103,-500.0,0.00032876,31]
[336725003,1725084641113,-514.36864653,0.00032876,31]
[336725005,1725084641123,-500.0,0.00032876,31]
[336725006,1725084641132,-500.0,0.00032876,31]
[336725008,1725084641142,-500.0,0.00032876,31]
[336725009,1725084641151,-500.0,0.00032876,31]
[336725011,1725084641161,-151.0,0.00032876,7]
[336725013,1725084641171,-501.35180521,0.00032876,31]
[336725016,1725084641181,-500.0,0.00032876,31]
[336725018,1725084641191,-151.0,0.00032876,7]
[336725020,1725084641200,-500.0,0.00032876,31]
[336725022,1725084641210,-151.0,0.00032876,7]
[336725023,1725084641219,-151.0,0.00032876,7]
[336725026,1725084641229,-151.0,0.00032876,7]
[336725028,1725084641238,-152.527121,0.00032876,7]
[336725030,1725084641248,-500.0,0.00032876,31]
[336725032,1725084641258,-501.95150194,0.00032876,31]
[336725034,1725084641267,-500.0,0.00032876,31]
[336725036,1725084641278,-239.98947293,0.00032876,31]
[336725039,1725084641295,-260.01052707,0.00032876,31]
[336725041,1725084641307,-561.19417123,0.00032876,31]
[336725043,1725084641318,-500.0,0.00032876,31]
[336725045,1725084641328,-500.53193447,0.00032876,31]
[336725047,1725084641338,-500.0,0.00032876,31]
[336725049,1725084641348,-500.0,0.00032876,31]
[336725051,1725084641358,-506.62669606,0.00032876,31]
[336725053,1725084641369,-500.0,0.00032876,31]
[336725055,1725084641378,-500.0,0.00032876,31]
[336725057,1725084641388,-500.0,0.00032876,31]
[336725059,1725084641397,-500.0,0.00032876,31]
[336725061,1725084641407,-245.04107141,0.00032876,31]
[336725063,1725084641416,-151.0,0.00032876,7]
[336725065,1725084641425,-151.0,0.00032876,7]
[336725067,1725084641435,-151.0,0.00032876,7]
[336725069,1725084641445,-151.0,0.00032876,7]
[336725071,1725084641454,-151.0,0.00032876,7]
[336725085,1725084641464,-151.0,0.00032876,7]
[336725087,1725084641586,-151.0,0.00032876,7]
[336725089,1725084641597,-151.0,0.00032876,7]
[336725091,1725084641606,-151.0,0.00032876,7]
[336725093,1725084641615,-482.06943805,0.00032876,31]
[336725233,1725084751915,162.784446,0.00028767,2]
[336725235,1725085049953,166.0039615,0.00014247,2]
[336731965,1725085536188,-468.576117,0.00028455,2]
[336731966,1725085540223,165.246659,0.00014247,2]
[336731967,1725085545121,-165.246659,0.00027884,2]
[336731968,1725085545145,-2060.5374175,0.00028455,2]
[336731969,1725085545168,-300.0,0.00029264,2]
[336731970,1725085545191,-267.91740696,0.00029265,2]
[336731971,1725085634336,-430.54199785,0.00029265,2]
[336731972,1725085649123,-1373.79849083,0.00029265,2]
[336731973,1725085652116,-830.35136486,0.00029265,2]
[336731977,1725085746931,-21997.3907395,0.00029265,2]
[336732059,1725085840212,-200.0,0.0003,120]
[336732060,1725085840224,-151.0,0.0003,120]
[336732061,1725085840234,-600.0,0.00030493,51]
[336732062,1725085840243,-1459.47644885,0.00030756,2]
[336732063,1725085840253,-2919.49519213,0.00030856,2]
[336732064,1725085840263,-2000.0,0.00031,90]
[336732065,1725085840272,-2000.0,0.000315,9]
[336732066,1725085840282,-162.784446,0.00031781,2]
[336732067,1725085840292,-151.0,0.00031945,120]
[336732068,1725085840302,-2000.0,0.00032,120]
[336732069,1725085840311,-2000.0,0.00032,60]
[336732070,1725085840321,-1000.0,0.00032,32]
[336732071,1725085840331,-600.0,0.00032087,2]
[336732072,1725085840340,-309.8035938,0.00032329,2]
[336732073,1725085840350,-600.0,0.00032421,2]
[336732074,1725085840359,-2000.0,0.000325,7]
[336732075,1725085840369,-1036.14039048,0.00032756,2]
[336732076,1725085840379,-191.0309408,0.00032775,2]
[336732077,1725085840388,-191.03094077,0.00032775,2]
[336732078,1725085840397,-191.03094077,0.00032776,2]
[336732079,1725085840407,-191.03094077,0.00032776,2]
[336732080,1725085840416,-1828.53572924,0.00032776,2]
[336732081,1725085840426,-191.03094077,0.00032776,2]
[336732082,1725085840435,-738.1166993,0.00032779,2]
[336732083,1725085840445,-58741.1982014,0.00032866,4]
[336732084,1725085840454,-184.31,0.00032866,3]
[336732085,1725085840465,-153.59,0.00032866,3]
[336732086,1725085840475,-311.0626141,0.00032875,2]
[336732087,1725085840484,-500.0,0.00032875,31]
[336732088,1725085840493,-483.50467371,0.00032876,5]
[336732089,1725085840502,-267.6536085,0.00032876,5]
[336732090,1725085840513,-500.0,0.00032876,31]
[336732091,1725085840523,-500.0,0.00032876,31]
[336732092,1725085840533,-500.0,0.00032876,31]
[336732093,1725085840543,-501.60882536,0.00032876,31]
[336732094,1725085840553,-500.0,0.00032876,31]
[336732095,1725085840563,-626.03078535,0.00032876,31]
[336732096,1725085840573,-500.0,0.00032876,31]
[336732097,1725085840583,-514.36864653,0.00032876,31]
[336732098,1725085840593,-151.0,0.00032876,7]
[336732099,1725085840603,-151.0,0.00032876,7]
[336732100,1725085840612,-151.0,0.00032876,7]
[336732101,1725085840623,-151.0,0.00032876,7]
[336732102,1725085840632,-151.0,0.00032876,7]
[336732103,1725085840642,-152.527121,0.00032876,7]
[336732104,1725085840652,-504.26060148,0.00032876,31]
[336732105,1725085840662,-500.0,0.00032876,31]
[336732106,1725085840672,-500.0,0.00032876,31]
[336732107,1725085840682,-501.58317657,0.00032876,31]
[336732108,1725085840692,-501.20939541,0.00032876,31]
[336732109,1725085840702,-501.54222738,0.00032876,31]
[336732110,1725085840714,-500.0,0.00032876,31]
[336732111,1725085840724,-500.0,0.00032876,31]
[336732112,1725085840734,-575.52330809,0.00032876,31]
[336732113,1725085840745,-500.0,0.00032876,31]
[336732114,1725085840755,-500.78880052,0.00032876,31]
[336732115,1725085840765,-501.90289059,0.00032876,31]
[336732116,1725085840775,-499.33067046,0.00032876,31]
[336732117,1725085840785,-500.0,0.00032876,31]
[336732118,1725085840795,-500.0,0.00032876,7]
[336732119,1725085840807,-500.0,0.00032876,31]
[336732120,1725085840818,-500.0,0.00032876,31]
[336732121,1725085840831,-500.0,0.00032876,31]
[336732122,1725085840841,-500.0,0.00032876,31]
[336732123,1725085840851,-500.0,0.00032876,31]
[336732124,1725085840862,-500.45370851,0.00032876,31]
[336732125,1725085840872,-502.77353396,0.00032876,31]
[336732126,1725085840882,-500.0,0.00032876,31]
[336732127,1725085840891,-500.0,0.00032876,31]
[336732128,1725085840900,-500.0,0.00032876,31]
[336732129,1725085840910,-500.0,0.00032876,31]
[336732130,1725085840920,-500.0,0.00032876,31]
[336732131,1725085840930,-500.0,0.00032876,31]
[336732132,1725085840940,-411.80642335,0.00032876,31]
[336732133,1725085840951,-500.0,0.00032876,31]
[336732134,1725085840962,-500.95167211,0.00032876,31]
[336732135,1725085840972,-334.82523162,0.00032876,31]
[336732136,1725085840981,-539.86198693,0.00032876,31]
[336732137,1725085840991,-512.73512882,0.00032876,31]
[336732138,1725085841000,-500.0,0.00032876,31]
[336732139,1725085841009,-500.0,0.00032876,31]
[336732140,1725085841019,-500.0,0.00032876,31]
[336732141,1725085841029,-502.42574775,0.00032876,31]
[336732142,1725085841038,-500.50693139,0.00032876,31]
[336732143,1725085841048,-501.87104983,0.00032876,31]
[336732144,1725085841058,-500.0,0.00032876,31]
[336732145,1725085841068,-517.60828531,0.00032876,31]
[336732146,1725085841078,-500.0,0.00032876,31]
[336732147,1725085841088,-500.0,0.00032876,31]
[336732148,1725085841098,-501.90736599,0.00032876,31]
[336732149,1725085841107,-500.0,0.00032876,31]
[336732150,1725085841117,-500.0,0.00032876,31]
[336732151,1725085841126,-501.74594415,0.00032876,31]
[336732152,1725085841137,-500.0,0.00032876,31]
[336732153,1725085841150,-309.75121009,0.00032876,31]
[336732154,1725085841163,-585.39185834,0.00032876,31]
[336732155,1725085841173,-503.72180738,0.00032876,31]
[336732156,1725085841183,-500.91203932,0.00032876,31]
[336732157,1725085841195,-501.16333244,0.00032876,31]
[336732158,1725085841205,-501.06257487,0.00032876,31]
[336732159,1725085841216,-384.93599808,0.00032876,31]
[336732160,1725085841228,-502.5828018,0.00032876,31]
[336732161,1725085841240,-500.0,0.00032876,31]
[336732162,1725085841250,-500.0,0.00032876,31]
[336732163,1725085841259,-500.0,0.00032876,31]
[336732164,1725085841269,-151.0,0.00032876,7]
[336732165,1725085841278,-151.0,0.00032876,7]
[336732166,1725085841288,-151.0,0.00032876,7]
[336732167,1725085841298,-500.0,0.00032876,31]
[336732168,1725085841308,-151.0,0.00032876,7]
[336732169,1725085841318,-151.0,0.00032876,7]
[336732170,1725085841327,-151.0,0.00032876,7]
[336732171,1725085841337,-151.0,0.00032876,7]
[336732172,1725085841347,-151.0,0.00032876,7]
[336732173,1725085841358,-151.0,0.00032876,7]
[336732174,1725085841368,-151.0,0.00032876,7]
[336732175,1725085841377,-151.0,0.00032876,7]
[336732176,1725085841387,-500.0,0.00032876,31]
[336732177,1725085841397,-151.0,0.00032876,7]
[336732178,1725085841407,-151.0,0.00032876,7]
[336732179,1725085841417,-151.0,0.00032876,7]
[336732180,1725085841426,-151.0,0.00032876,7]
[336732181,1725085841436,-151.0,0.00032876,7]
[336732182,1725085841446,-259.736673,0.00032876,7]
[336732183,1725085841457,-500.88746794,0.00032876,2]
[336732184,1725085841468,-501.48328471,0.00032876,31]
[336732185,1725085841477,-502.12273477,0.00032876,31]
[336732186,1725085841486,-503.13804404,0.00032876,31]